Cogmind - Beta 12 @@@ ROGUE MODE // 2023.05.20 @ 22:51:29 Player: maxwell Result: Core destroyed Performance ------------- Evolutions (8) 4000 Regions Visited (32) 6400 Robots Destroyed (362) 1810 Value Destroyed (18285) 18285 Prototype IDs (44) 880 Alien Tech Used (8) 1600 Bonus (7708) 7708 TOTAL SCORE: 40683 Bonus ------- High Alert Combat Kills 1423 Follower Combat Kills 1957 Entered Garrisons 200 Used RIF Installer 500 Network Hubs Disabled 200 Met Data Miner 300 Met Zhirov 300 A7 Reached Mainframe 300 Met R17 at Cetus 500 Met R17 at Research 2000 Acquired SGEMP 2000 Friendly Fire -1972 Cogmind --------- Core Integrity 0/1450 Matter 120/425 Energy 101/350 System Corruption 14% Temperature Cool (0) Movement Core (700) Ox13 Location -2/Section 7 Parts ------- > --- POWER (2) -------- Quantum Reactor > --- PROPULSION (4) --- (None) > --- UTILITY (15) ----- Huge Storage Unit Advanced Sensor Array Advanced Signal Interpreter Transmission Jammer Centrium Light Armor Plating SHELL Armor Graphene Brace Experimental Hardlight Generator Improved Hacking Suite Improved Hacking Suite Microwarp Drive > --- WEAPON (3) ------- Enhanced Quantum Rifle Cooled Nova Cannon > --- INVENTORY (25) --- Matter Drive Centrium Leg Compact Wheel Improved Matter Compressor (300) Centrium Light Armor Plating Experimental EM Disruption Field Subatomic Replicator Core Physics Calibrator Long-range Phase Cannon Core Cannon Omega Cannon Neutron Missile Launcher Dirty Datajack (9) Advanced Remote Datajack Core Stripper SGEMP Prototype Peak State ------------ > --- POWER ------------ Improved Quantum Reactor Improved Quantum Reactor > --- PROPULSION ------- Biometal Leg Myomer Exoskeleton > --- UTILITY ---------- Advanced Heat Sink Huge Storage Unit Advanced Sensor Array Advanced Signal Interpreter Advanced Targeting Computer Transmission Jammer Centrium Light Armor Plating SHELL Armor Graphene Brace Improved Hacking Suite Improved Hacking Suite Microwarp Drive > --- WEAPON ----------- Enhanced Quantum Rifle Cooled Nova Cannon Advanced KE Penetrator > --- INVENTORY -------- Quantum Reactor Matter Drive Centrium Leg Compact Wheel Improved Matter Compressor Centrium Light Armor Plating Experimental EM Disruption Field Experimental Hardlight Generator Transdimensional Reconstructor Subatomic Replicator Long-range Phase Cannon Core Cannon Omega Cannon Neutron Missile Launcher Dirty Datajack Advanced Remote Datajack Core Stripper SGEMP Prototype [Rating: 228] Favorites ----------- Power Improved Ion Engine Engine Improved Ion Engine Power Core Fission Core Reactor Quantum Reactor Propulsion Wheel Treads Light Treads Leg Myomer Exoskeleton Wheel Wheel Utility Hacking Suite Device Advanced Heat Sink Storage Huge Storage Unit Processor Advanced Targeting Computer Hackware Hacking Suite Protection Improved Propulsion Shielding Artifact Microwarp Drive Weapon Phase Cannon Energy Gun Beam Rifle Energy Cannon Phase Cannon Ballistic Gun Advanced KE Penetrator Ballistic Cannon Heavy Flak Cannon Launcher Mini Grenade Launcher Special Weapon Improved Remote Datajack Impact Weapon Core Stripper Special Melee Weapon Dirty Datajack Build | -11 -10 -10 -10 -9 -8 -7 -7 -7 -7 -6 -6 -6 -6 -6 -6 -5 -5 -5 -5 -5 -5 -4 -4 -4 -4 -4 -3 -3 -3 -2 -2 -2 ------- Run | Jun Mat Min Exi Min Mat Fac Low Low Dat Pro Fac Ext Cet Arc Hub Fac Gar Fac Upp Upp Zhi Pro Fac Upp Upp War Pro Res Qua Res Tes Sec Slots Evolved 16 | . . . . . 4 2 . . . . 2 . . . . 2 . . . . . . 2 . . . . 2 . 2 . . Power 1 | . . . . . . . . . . . 1 . . . . . . . . . . . . . . . . . . . . . Propulsion 2 | . . . . . . . . . . . . . . . . . . . . . . . 2 . . . . . . . . . Utility 13 | . . . . . 4 2 . . . . 1 . . . . 2 . . . . . . . . . . . 2 . 2 . . Weapon . | . . . . . . . . . . . . . . . . . . . . . . . . . . . . . . . . . Parts Attached 383 | . 16 2 . 10 32 24 8 5 . 8 5 11 6 13 . 2 26 2 6 4 1 10 26 14 . 3 10 19 34 22 49 15 Power 31 | . 2 . . . 1 3 . 1 . . 1 1 1 2 . . 3 . . 1 . . 5 1 . 1 . 3 . 1 3 1 Engine 12 | . 2 . . . 1 3 . 1 . . 1 1 . . . . 1 . . 1 . . . 1 . . . . . . . . Core 1 | . . . . . . . . . . . . . . . . . . . . . . . 1 . . . . . . . . . Reactor 18 | . . . . . . . . . . . . . 1 2 . . 2 . . . . . 4 . . 1 . 3 . 1 3 1 Propulsion 42 | . 3 1 . 2 7 5 . 1 . 1 . . . . . . . 1 . . . 1 4 1 . . 3 4 2 1 4 1 Treads 12 | . 3 1 . 2 2 1 . . . . . . . . . . . . . . . . . 1 . . . 2 . . . . Leg 5 | . . . . . . . . . . . . . . . . . . . . . . . . . . . 1 . . 1 2 1 Wheel 25 | . . . . . 5 4 . 1 . 1 . . . . . . . 1 . . . 1 4 . . . 2 2 2 . 2 . Hover . | . . . . . . . . . . . . . . . . . . . . . . . . . . . . . . . . . Flight . | . . . . . . . . . . . . . . . . . . . . . . . . . . . . . . . . . Utility 181 | . 6 1 . 4 14 11 7 3 . 4 4 4 1 6 . 2 18 1 5 3 1 7 9 8 . 2 1 8 14 15 19 3 Device 86 | . 2 . . 1 6 1 5 . . 1 1 1 . 3 . 1 6 1 3 2 1 3 6 6 . 2 1 4 4 11 13 1 Storage 8 | . 3 1 . . 1 . . . . . . . . . . . . . . . . 1 1 . . . . . 1 . . . Processor 8 | . . . . . 2 1 1 1 . . . . . . . 1 . . . . . . . . . . . . 2 . . . Hackware 10 | . . . . . . 2 . . . . 2 . . . . . . . . . . . . . . . . 2 1 2 . 1 Protection 68 | . 1 . . 3 5 7 1 2 . 3 1 3 1 3 . . 12 . 2 1 . 3 2 2 . . . 2 6 2 6 . Artifact 1 | . . . . . . . . . . . . . . . . . . . . . . . . . . . . . . . . 1 Weapon 129 | . 5 . . 4 10 5 1 . . 3 . 6 4 5 . . 5 . 1 . . 2 8 4 . . 6 4 18 5 23 10 Energy Gun 33 | . 2 . . 3 7 1 . . . . . . . 1 . . . . . . . 1 3 1 . . 4 1 . 1 7 1 Energy Cannon 52 | . . . . . 2 3 . . . 1 . 4 4 3 . . 3 . 1 . . . 5 . . . 2 3 12 1 4 4 Ballistic Gun 7 | . 3 . . . . . . . . . . . . . . . . . . . . . . . . . . . . . 3 1 Ballistic Cannon 3 | . . . . . . . . . . 1 . 1 . . . . . . . . . 1 . . . . . . . . . . Launcher 22 | . . . . 1 1 1 1 . . 1 . 1 . 1 . . 1 . . . . . . . . . . . 2 2 6 4 Special Weapon 6 | . . . . . . . . . . . . . . . . . . . . . . . . 1 . . . . 2 1 2 . Impact Weapon 2 | . . . . . . . . . . . . . . . . . . . . . . . . . . . . . 1 . 1 . Slashing Weapon . | . . . . . . . . . . . . . . . . . . . . . . . . . . . . . . . . . Piercing Weapon . | . . . . . . . . . . . . . . . . . . . . . . . . . . . . . . . . . Special Melee Weapon 4 | . . . . . . . . . . . . . . . . . 1 . . . . . . 2 . . . . 1 . . . Unidentified Prototypes 28 | . . . . . 2 1 1 . . . . 1 . 2 . . . . . . 1 1 1 . . . . 1 3 1 9 4 Corrupted Parts 5 | . . . . 2 . . . . . . . . . 3 . . . . . . . . . . . . . . . . . . System Corruption 23 | . . . . 9 . . . . . . . . . 14 . . . . . . . . . . . . . . . . . . Parts Lost 103 | . 2 1 . 3 7 4 1 1 . 10 . . . 1 . . 11 . 3 4 . 9 11 2 . 2 4 1 3 4 10 9 Power 12 | . 1 . . . . . . . . 1 . . . . . . 2 . . 1 . . 3 . . 1 1 . . . . 2 Propulsion 20 | . . 1 . 1 3 2 . . . 2 . . . . . . . . . . . 1 1 1 . 1 1 . . 1 3 2 Utility 49 | . . . . 1 3 2 1 1 . 4 . . . . . . 6 . 2 3 . 6 5 1 . . 1 1 2 3 4 3 Weapon 22 | . 1 . . 1 1 . . . . 3 . . . 1 . . 3 . 1 . . 2 2 . . . 1 . 1 . 3 2 Highest Loss Streak 9 | . 2 1 . 1 2 1 1 1 . 7 . . . 1 . . 3 . 1 3 . 5 9 1 . 2 2 1 1 2 3 3 To Critical Strikes . | . . . . . . . . . . . . . . . . . . . . . . . . . . . . . . . . . Average Slot Usage (%) 93 | . 92 99 100 99 94 97 99 99 100 89 72 92 92 89 93 93 92 94 94 93 94 89 81 97 95 93 88 90 94 96 87 76 Engine 5 | . 13 14 14 14 9 6 7 7 7 5 . 11 10 2 . . 2 . . . 5 5 2 3 5 3 . . . . . . Reactor 4 | . . . . . . . . . . . . . 1 9 12 11 6 11 11 9 5 5 6 6 5 6 7 8 9 8 8 6 Treads 5 | . 22 27 28 27 8 1 . . . . . . . . . . . . . . . . . 1 5 5 5 4 2 . . . Wheel 6 | . . . . . 6 13 14 14 14 11 6 6 6 6 6 5 5 5 5 5 5 4 9 16 10 8 5 4 11 13 8 . Device 16 | . 1 14 14 9 15 15 9 14 14 6 4 11 12 16 12 15 12 22 22 22 27 19 19 21 25 25 26 30 18 23 25 15 Storage 6 | . 14 14 14 14 9 7 7 7 7 7 6 6 6 6 6 5 5 5 5 5 5 5 4 5 5 5 5 4 4 4 4 4 Processor 8 | . . . . . 11 15 19 13 7 7 6 6 6 6 6 10 11 11 11 11 11 11 10 10 10 10 10 9 9 8 8 7 Hackware 6 | . . . . . . . . . . . 6 12 12 12 12 11 11 11 11 9 5 5 5 5 5 5 5 11 12 14 11 8 Protection 12 | . 6 . . 4 15 21 21 21 28 31 29 18 18 10 18 16 20 11 11 11 11 14 10 13 10 10 8 1 12 9 6 9 Energy Gun 6 | . 2 28 28 28 13 . . . . . . . . 2 . . . . . . . 2 4 8 10 10 8 4 . . 2 3 Energy Cannon 7 | . . . . . 3 14 14 14 14 10 . 5 12 14 12 11 11 16 16 16 16 10 6 5 5 5 6 9 8 6 4 2 Ballistic Gun 1 | . 25 . . . . . . . . . . . . . . . . . . . . . . . . . . . . . . 3 Launcher 1 | . . . . . . . 4 7 7 7 6 6 6 . 6 5 4 . . . . . . . . . . . . . 1 1 Naked Turns . | . . . . . . . . . . . . . . . . . . . . . . . . . . . . . . . . . Heaviest Build 187 | 11 56 94 94 97 110 136 121 126 126 127 119 139 146 155 154 155 164 159 165 165 158 171 169 162 151 158 159 164 164 170 184 187 Greatest Support 138 | 20 40 40 40 40 40 42 20 20 20 28 28 28 28 28 28 28 28 28 28 28 28 28 52 52 20 75 75 110 46 46 125 138 Greatest Overweight (x) 13 | . 1 2 2 2 9 13 6 6 6 6 4 4 5 5 5 5 5 5 5 5 5 6 6 7 7 7 9 9 6 4 6 13 Average Overweight (x) 4 | . . 1 2 2 4 5 5 6 6 5 3 4 4 4 5 5 4 5 5 5 5 5 3 5 7 6 5 6 4 3 2 1 Largest Inventory Capacity 25 | . 20 25 25 25 25 25 25 25 25 25 25 25 25 25 25 25 25 25 25 25 25 25 25 25 25 25 25 25 25 25 25 25 Average Capacity 24 | . 14 21 25 25 25 25 25 25 25 25 25 25 25 25 25 25 25 25 25 25 25 25 24 25 25 25 25 25 25 25 25 25 Most Carried 25 | . 20 24 23 25 25 25 25 25 25 25 24 25 25 25 25 25 25 25 25 24 24 24 25 25 25 25 25 25 25 25 25 25 Average Carried 22 | . 11 20 23 22 23 24 23 24 25 23 23 22 24 24 24 23 24 24 23 22 22 17 21 24 23 24 24 23 23 23 24 23 Final Capacity 25 | 8 20 25 25 25 25 25 25 25 25 25 25 25 25 25 25 25 25 25 25 25 25 25 25 25 25 25 25 25 25 25 25 25 Final Carried 25 | 6 19 23 23 24 25 25 22 25 25 22 24 25 24 24 25 25 25 25 24 20 24 20 25 23 25 24 25 24 23 25 23 21 Class Distribution -------------------- 48% | Scavenger-Mutant 19% | Mutant 11% | Scavenger-Tank 8% | Scavenger-Gunner 5% | Hacker-Mutant 3% | Commander-Mutant Dominant Class ---------------- Mutant | -10/Materials Mutant | -10/Mines Mutant | -10/Exiles Mutant | -9/Mines Scavenger-Mutant | -8/Materials Scavenger-Mutant | -7/Factory Scavenger-Mutant | -7/Lower Caves Scavenger-Mutant | -7/Lower Caves Scavenger-Mutant | -7/Data Miner Scavenger-Mutant | -6/Proximity Caves Hacker-Mutant | -6/Factory Commander-Mutant | -6/Extension Commander-Mutant | -6/Cetus Hacker-Mutant | -6/Archives Scavenger-Tank | -6/Hub_04(d) Scavenger-Mutant | -5/Factory Scavenger-Mutant | -5/Garrison Scavenger-Gunner | -5/Factory Scavenger-Gunner | -5/Upper Caves Scavenger-Gunner | -5/Upper Caves Scavenger-Gunner | -5/Zhirov Scavenger-Tank | -4/Proximity Caves Scavenger-Tank | -4/Factory Scavenger-Mutant | -4/Upper Caves Scavenger-Tank | -4/Upper Caves Scavenger-Mutant | -4/Warlord Scavenger-Mutant | -3/Proximity Caves Scavenger-Mutant | -3/Research Scavenger-Mutant | -3/Quarantine Scavenger-Mutant | -2/Research Scavenger-Mutant | -2/Testing Hacker-Mutant | -2/Section 7 Resources | -11 -10 -10 -10 -9 -8 -7 -7 -7 -7 -6 -6 -6 -6 -6 -6 -5 -5 -5 -5 -5 -5 -4 -4 -4 -4 -4 -3 -3 -3 -2 -2 -2 ----------- Run | Jun Mat Min Exi Min Mat Fac Low Low Dat Pro Fac Ext Cet Arc Hub Fac Gar Fac Upp Upp Zhi Pro Fac Upp Upp War Pro Res Qua Res Tes Sec Matter Collected 6560 | 200 703 20 . 54 381 294 105 65 . 90 35 619 80 120 21 . 345 50 55 40 20 417 277 291 . . 115 185 432 346 769 431 Remotely . | . . . . . . . . . . . . . . . . . . . . . . . . . . . . . . . . . Salvage Created 17940 | . 662 254 . 156 1146 1468 172 108 . 616 35 244 270 624 354 . 1288 122 328 660 150 651 702 815 319 . 562 248 1089 949 2763 1185 Parts 810 | . 53 7 . 5 71 73 10 11 . 18 1 6 10 35 12 . 47 7 11 8 2 24 26 20 22 . 23 13 60 53 134 48 Haulers Intercepted 5 | . 2 . . . 1 1 . . . . . . . . . . . . . . . . . . . . . 1 . . . . Recyclers Shooed 4 | . . . . . . 1 . . . . . . . . . . . . . . . . 1 . . . . . 1 . 1 . Parts Field Recycled . | . . . . . . . . . . . . . . . . . . . . . . . . . . . . . . . . . Retrieved Matter . | . . . . . . . . . . . . . . . . . . . . . . . . . . . . . . . . . Parts Self-Destructed 143 | . . . . . . . 11 10 . 17 . . . . . . . . 11 6 1 22 . 17 28 . 20 . . . . . Prevented 10 | . . . . . . . 2 . . . . . . . . . . . 1 . . . . 7 . . . . . . . . Kills | -11 -10 -10 -10 -9 -8 -7 -7 -7 -7 -6 -6 -6 -6 -6 -6 -5 -5 -5 -5 -5 -5 -4 -4 -4 -4 -4 -3 -3 -3 -2 -2 -2 ------- Run | Jun Mat Min Exi Min Mat Fac Low Low Dat Pro Fac Ext Cet Arc Hub Fac Gar Fac Upp Upp Zhi Pro Fac Upp Upp War Pro Res Qua Res Tes Sec Combat Hostiles Destroyed 289 | . 14 6 . 8 22 22 3 5 . 17 . 4 3 4 5 . 28 1 6 7 . 10 6 6 8 . 8 3 15 19 36 23 Guns 69 | . 14 4 . 4 17 . . . . . . . . . . . . . . . . 2 5 3 3 . 6 . . . 5 6 Cannons 123 | . . . . . 2 19 2 1 . 5 . 3 1 3 5 . 14 1 5 7 . 6 1 2 4 . . 3 10 8 18 3 AOE 68 | . . . . 4 2 3 1 4 . 12 . . . . . . 11 . 1 . . . . . . . . . 3 10 3 14 Classes Destroyed 26 | . 5 . . 4 3 5 1 . . . . . . . . . 2 . . . . . . 2 . . . . . . 2 2 Worker 10 | . . . . 1 2 1 . . . . 2 . . . 1 . . . . . . . 1 . . . . . . . 1 1 Builder 11 | . . . . 1 2 1 . . . . . . . . . . . . . . . . 1 . . . . . 1 1 4 . Tunneler 2 | . . . . . . 2 . . . . . . . . . . . . . . . . . . . . . . . . . . Hauler 5 | . 2 . . . 1 1 . . . . . . . . . . . . . . . . . . . . . 1 . . . . Recycler 6 | . 1 . . 1 1 . . . . . . . . . . . . . . . . . 2 . . . . . 1 . . . Minesweeper 3 | . . . . . . . . . . . . . . . . . . . . . . . . 1 1 . 1 . . . . . Mechanic 2 | . . . . . . 1 . . . 1 . . . . . . . . . . . . . . . . . . . . . . Operator 13 | . . . . . 2 1 . . . . . . . 7 . . . . . . . . . . . . . . . 1 2 . Watcher 18 | . 2 . . . 3 4 . . . . . 1 . . . . . 1 . . . . 1 . . . . . 2 2 1 1 Swarmer 67 | . 3 . . 4 7 1 . 4 . 4 . . . . . . 9 . 1 . . 4 . 2 5 . . 1 3 10 . 9 Cutter 2 | . . . . . . . . . . . . . . . . . 2 . . . . . . . . . . . . . . . Grunt 92 | . 11 6 . . 6 11 1 . . 7 . 1 . . 2 . 9 . 1 6 . 3 . 3 1 . 7 . 4 . 10 3 Brawler 6 | . . . . . . 1 . . . 2 . . . . . . . . . 1 . 1 . . . . . . . . 1 . Duelist 7 | . . . . . . 3 . . . 1 . . . . . . . . . . . . . . . . . . . . 2 1 Protector 1 | . . . . . . . . . . . . . . . . . . . . . . . . . . . . . . . . 1 Sentry 37 | . . . . . 8 4 . . . 2 . 3 . 4 3 . 3 1 1 . . 1 1 1 . . . . . 1 3 1 Demolisher 2 | . . . . 2 . . . . . . . . . . . . . . . . . . . . . . . . . . . . Specialist 5 | . . . . . . . . . . . . . . . . . 3 . . . . . . . . . . . . 2 . . Hunter 18 | . . . . . 1 1 . 1 . 1 . . . . . . 1 . 1 . . . 4 . . . . . . . 4 4 Programmer 40 | . . . . . . 1 1 . . . . . . . . . . . 2 . . 1 1 . 2 . 1 2 8 6 13 2 Behemoth 2 | . . . . . . . 1 . . . . . . . . . 1 . . . . . . . . . . . . . . . Cetus Guard 3 | . . . . . . . . . . . . . 3 . . . . . . . . . . . . . . . . . . . Striker 2 | . . . . . . . . . . . . . . . . . . . . . . . . . . . . . . . 2 . Executioner 2 | . . . . . . . . . . . . . . . . . . . . . . . . . . . . . . . . 2 Alpha 7 1 | . . . . . . . . . . . . . . . . . . . . . . . . . . . . . . . 1 . Assembled 2 | . . . . 2 . . . . . . . . . . . . . . . . . . . . . . . . . . . . Thug 2 | . . . . . . . . . . . . . 1 . . . . . . . . . . 1 . . . . . . . . Savage 1 | . . . . . . . . . . . . . . 1 . . . . . . . . . . . . . . . . . . Butcher 1 | . . . . . . . . . . . . . . . . . . . . . . . . 1 . . . . . . . . Mutant 1 | . . . . . . . . . . . . . . . . . . . . . . . . 1 . . . . . . . . Best Kill Streak 12 | . 5 2 . 6 5 5 1 4 . 12 2 1 2 4 4 . 5 1 3 4 . 4 8 3 3 . 3 2 3 10 8 6 Combat Bots Only 11 | . 3 2 . 4 4 5 1 4 . 11 . 1 2 4 3 . 5 1 3 4 . 4 3 2 3 . 3 2 3 10 7 5 Max Kills in Single Turn 5 | . 1 1 . 2 1 1 1 4 . 3 1 1 1 1 1 . 4 1 1 1 . 1 1 1 1 . 1 1 3 4 3 5 Gunslinging . | . . . . . . . . . . . . . . . . . . . . . . . . . . . . . . . . . Exploded 5 | . . . . 2 1 1 1 4 . 3 . . . . . . 4 . 1 . . . . . . . . . 3 4 1 5 Melee . | . . . . . . . . . . . . . . . . . . . . . . . . . . . . . . . . . Uniques/NPCs Destroyed . | . . . . . . . . . . . . . . . . . . . . . . . . . . . . . . . . . Combat | -11 -10 -10 -10 -9 -8 -7 -7 -7 -7 -6 -6 -6 -6 -6 -6 -5 -5 -5 -5 -5 -5 -4 -4 -4 -4 -4 -3 -3 -3 -2 -2 -2 -------- Run | Jun Mat Min Exi Min Mat Fac Low Low Dat Pro Fac Ext Cet Arc Hub Fac Gar Fac Upp Upp Zhi Pro Fac Upp Upp War Pro Res Qua Res Tes Sec Damage Taken 25004 | . 522 337 . 282 1106 1163 213 95 . 1309 27 283 125 183 255 . 2112 42 650 589 . 864 1447 575 176 147 915 197 1518 775 4253 4844 Core 2670 | . 91 47 . 50 181 194 . . . 140 27 17 14 20 . . 146 . 14 133 . 103 144 56 . 23 52 15 123 116 381 583 Absorbed by Shields 3090 | . . . . . . . . . . . . 104 62 . . . . . . . . 207 119 360 120 32 592 64 . . 760 670 Redirected to Shielding 809 | . . . . . 52 28 18 14 . 70 . 27 . 16 9 . 160 . . . . . . . . . . . 182 133 100 . Regen/Repaired (Parts) 2507 | . . . . . . . . . . . . . . . . . . . . . . . . . . . . . . . 1115 1392 Core Remaining (%) 69 | 100 . . . 24 67 . . . . 52 . . . . 90 . . . . . . 60 . . . . 76 . 89 . . . Volleys Fired 1000 | . 59 22 . 14 74 70 17 4 . 33 2 22 9 30 12 . 70 6 20 21 5 25 44 63 15 1 34 24 77 43 127 57 Largest 3 | . 2 2 . 2 2 2 2 2 . 2 1 2 2 3 3 . 3 3 3 3 1 3 3 3 3 1 2 3 2 2 3 3 Hottest 391 | . 112 112 . 112 130 130 130 130 . 130 53 170 138 250 203 . 260 265 265 265 90 265 391 273 273 105 193 306 226 233 300 150 Shots Fired 1839 | . 117 44 . 25 144 135 33 6 . 49 2 38 18 61 25 . 122 12 60 63 5 65 77 96 37 1 68 47 128 74 179 108 Gun 668 | . 117 44 . 22 118 . . . . . . . . 1 . . . . . . . 6 32 76 22 . 57 6 1 16 84 66 Cannon 1066 | . . . . . 22 130 32 4 . 36 2 38 18 60 24 . 108 12 60 63 5 59 45 18 15 1 11 41 122 51 57 32 Launcher 92 | . . . . 3 4 5 1 2 . 13 . . . . 1 . 14 . . . . . . . . . . . 1 4 34 10 Special 13 | . . . . . . . . . . . . . . . . . . . . . . . . 2 . . . . 4 3 4 . Kinetic 199 | . 115 . . . . . . . . 7 2 18 . . . . . . . . . 4 8 . . . . . . . 11 34 Thermal 1475 | . 2 44 . 22 140 130 32 4 . 29 . 20 . 39 24 . 108 12 60 63 5 61 69 94 37 1 68 47 117 67 116 64 Explosive 49 | . . . . 3 4 5 1 2 . 13 . . . . 1 . 5 . . . . . . . . . . . 1 4 . 10 Electromagnetic 103 | . . . . . . . . . . . . . 18 22 . . 9 . . . . . . . . . . . 6 . 48 . Robot Hit Streak 26 | . 14 13 . 14 25 24 8 11 . 9 5 12 21 9 16 . 17 5 6 14 5 17 18 21 6 . 9 9 15 12 26 12 Robot Miss Streak 6 | . 2 2 . 3 3 2 1 . . 3 4 4 1 2 1 . 2 2 6 2 1 3 3 2 3 . 2 3 3 3 3 3 Penetration Max 2 | . . . . . . . . . . . . . . . . . . . . . . . . . . . . . . . 2 1 Secondary Targets 11 | . 5 2 . . 2 . . . . . . . . . . . . . . . . . 1 . . . 1 . . . . . Max Gunslinging Chain 1 | . 1 1 . . 1 . . . . . . . . . . . . . . . . . 1 . . . 1 . . . . . Shots Hit Robots 1203 | . 79 34 . 11 104 104 9 3 . 34 2 27 17 43 18 . 84 6 17 39 4 43 52 87 18 . 46 23 63 52 124 60 Core Hits 624 | . 34 7 . 17 45 52 6 8 . 50 4 23 8 23 11 . 43 3 8 16 1 16 18 28 10 . 21 12 24 28 58 50 Critical Kills 21 | . 1 . . . . . . . . . . 1 . 1 . . . . . . . 1 2 3 1 . . . 4 2 5 . Critical Parts Destroyed 29 | . . . . . . . . . . . . . . . . . . . . . . . 5 2 . . . . . . 14 8 Critical Strikes 64 | . 2 2 . 1 7 . . . . . . 1 . 1 . . . . . . . 1 7 5 1 . 2 . 4 2 20 8 Burn 13 | . 1 2 . 1 7 . . . . . . . . . . . . . . . . . . . . . 2 . . . . . Meltdown 10 | . . . . . . . . . . . . 1 . 1 . . . . . . . . . 1 1 . . . 4 2 . . Destroy 41 | . 1 . . . . . . . . . . . . . . . . . . . . 1 7 4 . . . . . . 20 8 Melee Attacks 11 | . . . . . . . . . . . . . . . . . . . . . . . . 11 . . . . . . . . Impact . | . . . . . . . . . . . . . . . . . . . . . . . . . . . . . . . . . Slashing . | . . . . . . . . . . . . . . . . . . . . . . . . . . . . . . . . . Piercing 11 | . . . . . . . . . . . . . . . . . . . . . . . . 11 . . . . . . . . Sneak Attacks 1 | . . . . . . . . . . . . . . . . . . . . . . . . 1 . . . . . . . . Combat Hostiles 1 | . . . . . . . . . . . . . . . . . . . . . . . . 1 . . . . . . . . Follow-up Attacks . | . . . . . . . . . . . . . . . . . . . . . . . . . . . . . . . . . Damage Inflicted 49259 | . 881 528 . 402 2349 3268 312 311 . 2419 52 870 465 1297 784 . 3240 243 786 1563 217 1674 1826 2106 729 . 1311 962 3134 3188 9943 4399 Guns 11090 | . 868 499 . 146 1560 . . . . . . . . 18 . . . . . . . 160 864 1674 458 . 1032 70 36 470 1864 1371 Cannons 28442 | . . . . . 534 2929 271 88 . 739 52 870 465 1279 578 . 2484 243 714 1563 217 1514 962 397 271 . 279 892 2818 1670 6075 538 Explosions 9641 | . . . . 256 255 339 41 223 . 1680 . . . . 206 . 756 . 72 . . . . . . . . . 280 1043 2000 2490 Melee 17 | . . . . . . . . . . . . . . . . . . . . . . . . 17 . . . . . . . . Ramming 69 | . 13 29 . . . . . . . . . . . . . . . . . . . . . 18 . . . . . 5 4 . Kinetic 2570 | . 853 . . . . . . . . 200 52 567 . . . . . . . . . 37 70 . . . . . . . 191 600 Thermal 36049 | . 15 499 . 146 2094 2929 271 88 . 539 . 303 . 812 578 . 2579 243 786 1563 217 1637 1756 2071 729 . 1311 962 2738 2140 7682 1361 Explosive 6882 | . . . . 256 255 339 41 223 . 1680 . . . . . . 327 . . . . . . . . . . . 280 1043 . 2438 Electromagnetic 3672 | . . . . . . . . . . . . . 465 485 206 . 334 . . . . . . . . . . . 116 . 2066 . Impact . | . . . . . . . . . . . . . . . . . . . . . . . . . . . . . . . . . Slashing . | . . . . . . . . . . . . . . . . . . . . . . . . . . . . . . . . . Piercing 17 | . . . . . . . . . . . . . . . . . . . . . . . . 17 . . . . . . . . Highest Corruption 16 | . . . . 9 . 2 2 . . . . . . 8 . . 1 . 1 . . . 1 1 . 2 . . 16 3 3 14 Average Corruption 4 | . . . . 6 . 1 1 . . . . . . 4 . . 1 . 1 . . . 1 1 . 1 . . 11 1 1 3 Corruption Purged 32 | . . . . . . . 2 . . . . . . 14 . . 1 . 1 . . . . 1 . 2 . . . 4 7 . Corruption Blocked 20 | . . . . . . . . . . . . . . . . . . . . . . . . . . . . . . . 20 . Effects 108 | . . . . . . 3 2 . . . . . . 3 . . . . . . . . 2 3 . 2 . . 57 4 13 19 Message Errors 24 | . . . . . . 1 . . . . . . . . . . . . . . . . 1 1 . . . . 10 2 6 3 Matter Fused 27 | . . . . . . 1 . . . . . . . . . . . . . . . . . . . . . . 15 1 2 8 Heat Flow Errors 10 | . . . . . . . . . . . . . . . . . . . . . . . . . . . . . 7 . 1 2 Energy Discharges 13 | . . . . . . 1 1 . . . . . . 2 . . . . . . . . 1 . . . . . 6 . 1 1 Parts Fused 3 | . . . . . . . . . . . . . . . . . . . . . . . . 1 . 1 . . . . 1 . Data Loss (minor) 13 | . . . . . . . 1 . . . . . . . . . . . . . . . . . . 1 . . 8 . . 3 Data Loss (major) 6 | . . . . . . . . . . . . . . 1 . . . . . . . . . . . . . . 4 . . 1 Misfires 5 | . . . . . . . . . . . . . . . . . . . . . . . . 1 . . . . 2 . 1 1 Alerts 4 | . . . . . . . . . . . . . . . . . . . . . . . . . . . . . 3 . 1 . Weapon Failures 3 | . . . . . . . . . . . . . . . . . . . . . . . . . . . . . 2 1 . . Overload Shots 1 | . . . . . . . . . . . . . . . . . . . . . . . 1 . . . . . . . . . Overflow Damage 3335 | . . . . 6 3 48 . . . 32 . 17 . 45 25 . 39 12 . 103 113 58 49 20 33 . 6 1 113 145 2279 188 Projectiles 3020 | . . . . . . 48 . . . 11 . 17 . 45 . . 6 12 . 103 113 58 49 20 33 . 6 1 108 137 2235 18 Explosions 315 | . . . . 6 3 . . . . 21 . . . . 25 . 33 . . . . . . . . . . . 5 8 44 170 Melee . | . . . . . . . . . . . . . . . . . . . . . . . . . . . . . . . . . Knockbacks 20 | . . . . . . . . . . 4 2 13 . . . . . . . . . 1 . . . . . . . . . . Impact . | . . . . . . . . . . . . . . . . . . . . . . . . . . . . . . . . . Kinetic 16 | . . . . . . . . . . 4 2 9 . . . . . . . . . 1 . . . . . . . . . . Secondary 4 | . . . . . . . . . . . . 4 . . . . . . . . . . . . . . . . . . . . Self-Inflicted Damage 858 | . . . . . 26 198 . . . 57 . . . . 99 . 121 . . . . . . 9 . . . . 50 . 102 196 Shots 23 | . . . . . 2 5 . . . 2 . . . . 1 . 4 . . . . . . . . . . . 1 . 6 2 Rammed 9 | . 2 4 . . . . . . . . . . . . . . . . . . . . . 3 . . . . . . . . Targets Rammed 16 | . 6 4 . . . . . . . . . . . . . . . . . . . . . 3 . . . . . 1 2 . Kicked 6 | . 3 . . . . . . . . . . . . . . . . . . . . . . . . . . . . 1 2 . Crushed 1 | . 1 . . . . . . . . . . . . . . . . . . . . . . . . . . . . . . . Highest Temperature 556 | . 34 168 . 72 225 53 276 . . 321 . 102 . 330 186 . 230 54 189 381 . 446 312 383 126 177 18 102 199 165 348 556 Average Temperature 87 | . 10 75 . 27 52 21 98 . . 146 . 33 . 74 72 . 80 36 75 139 . 147 119 104 63 107 4 38 94 50 91 192 Received Heat Transfer 3877 | . 324 249 . . 333 306 36 . . 393 . 80 13 9 63 . 474 . 36 282 . 221 8 87 5 . 234 24 111 27 341 221 Effects 15 | . . . . . . . . . . 1 . . . 3 . . . . . 2 . 1 . 2 . . . . . . 1 5 Shutdowns 3 | . . . . . . . . . . 1 . . . . . . . . . . . . . 1 . . . . . . . 1 Energy Bleed 2 | . . . . . . . . . . . . . . . . . . . . . . 1 . . . . . . . . 1 . Interference 8 | . . . . . . . . . . . . . . 3 . . . . . 2 . . . . . . . . . . . 3 Matter Decay 1 | . . . . . . . . . . . . . . . . . . . . . . . . . . . . . . . . 1 Short Circuit 1 | . . . . . . . . . . . . . . . . . . . . . . . . 1 . . . . . . . . Siege Activations . | . . . . . . . . . . . . . . . . . . . . . . . . . . . . . . . . . Robots Corrupted 14 | . . . . . . . . . . . . . 2 1 . . . . . . . . . . . . . . 1 . 10 . Combat Hostiles 13 | . . . . . . . . . . . . . 2 1 . . . . . . . . . . . . . . . . 10 . Parts Fried 19 | . . . . . . . . . . . . . 3 4 . . 2 . . . . . . . . . . . 1 . 9 . Impact Corruptions . | . . . . . . . . . . . . . . . . . . . . . . . . . . . . . . . . . Robots Melted 20 | . . 2 . . 1 . . . . . . 1 . 1 . . 3 . . . . 2 . 1 1 . 2 . 4 2 . . Combat Hostiles 16 | . . 2 . . 1 . . . . . . 1 . . . . 3 . . . . 2 . 1 1 . 2 . 2 1 . . Parts Melted 99 | . . 5 . . 12 8 2 . . 1 . . . 7 1 . 8 . . 3 . 4 . 4 1 . 6 2 12 10 13 . Heat Transferred 36929 | . 111 1406 . 444 4181 3774 333 111 . 740 . 333 . 999 666 . 3164 224 709 1649 185 1684 1826 2701 814 . 1924 859 2294 1813 2640 1345 Parts Sabotaged . | . . . . . . . . . . . . . . . . . . . . . . . . . . . . . . . . . Parts Stolen . | . . . . . . . . . . . . . . . . . . . . . . . . . . . . . . . . . Parts Stripped . | . . . . . . . . . . . . . . . . . . . . . . . . . . . . . . . . . Power Chain Reactions 5 | . . . . . . . . . . . . . . . . . 1 . 1 . . . . . . . . . . . 2 1 Missiles Intercepted . | . . . . . . . . . . . . . . . . . . . . . . . . . . . . . . . . . Alert | -11 -10 -10 -10 -9 -8 -7 -7 -7 -7 -6 -6 -6 -6 -6 -6 -5 -5 -5 -5 -5 -5 -4 -4 -4 -4 -4 -3 -3 -3 -2 -2 -2 ------- Run | Jun Mat Min Exi Min Mat Fac Low Low Dat Pro Fac Ext Cet Arc Hub Fac Gar Fac Upp Upp Zhi Pro Fac Upp Upp War Pro Res Qua Res Tes Sec Peak Influence 1459 | . 240 126 . 111 306 322 . . . . 130 509 514 353 343 174 1459 925 . . . . 222 . . . . 105 401 402 676 1101 Initial 765 | . . 36 . . 1 65 . . . . 116 63 70 205 53 168 121 765 . . . . 2 . . . . . 9 71 30 344 Average 269 | . 124 32 . 11 135 166 . . . . 122 240 362 319 135 170 833 819 . . . . 115 . . . . 16 222 91 359 861 Maximum Alert Level 4 | . 1 . . . 1 1 . . . . . 2 2 1 1 . 4 3 . . . . 1 . . . . . 2 2 2 4 Low Security (%) 60 | . 85 100 . 100 84 57 . . . . 100 48 12 6 89 100 8 . . . . . 62 . . . . 100 53 93 23 . Level 1 18 | . 14 . . . 15 42 . . . . . 35 29 93 10 . 7 . . . . . 37 . . . . . 44 2 32 10 Level 2 9 | . . . . . . . . . . . . 15 57 . . . 30 . . . . . . . . . . . 1 3 43 5 Level 3 8 | . . . . . . . . . . . . . . . . . 25 100 . . . . . . . . . . . . . 82 Level 4 2 | . . . . . . . . . . . . . . . . . 27 . . . . . . . . . . . . . . 1 Level 5 . | . . . . . . . . . . . . . . . . . . . . . . . . . . . . . . . . . High Security . | . . . . . . . . . . . . . . . . . . . . . . . . . . . . . . . . . Max Security . | . . . . . . . . . . . . . . . . . . . . . . . . . . . . . . . . . Squads Dispatched 46 | . 3 . . . 5 7 . . . 1 . 1 . . 2 . . . . . . . . . . . . 4 4 2 10 7 Investigation 8 | . 2 . . . 2 1 . . . . . 1 . . . . . . . . . . . . . . . 2 . . . . Extermination 13 | . . . . . . 2 . . . . . . . . . . . . . . . . . . . . . . 3 1 5 2 Reinforcement 17 | . 1 . . . 1 4 . . . . . . . . 1 . . . . . . . . . . . . 2 1 1 4 2 Assault 5 | . . . . . . . . . . 1 . . . . . . . . . . . . . . . . . . . . 1 3 Garrison 3 | . . . . . 2 . . . . . . . . . 1 . . . . . . . . . . . . . . . . . Intercept . | . . . . . . . . . . . . . . . . . . . . . . . . . . . . . . . . . Searches Triggered . | . . . . . . . . . . . . . . . . . . . . . . . . . . . . . . . . . Data Miner Redirects 5 | . . . . . . . . . . . . 1 . . . . . . . . . . . . . . . . . . 2 2 Construction Impeded 2 | . . . . . . . . . . . . . . . . . . . . . . . . . . . . . . . 2 . Haulers Reinforced 1 | . . . . . . 1 . . . . . . . . . . . . . . . . . . . . . . . . . . Active Scanning Responses . | . . . . . . . . . . . . . . . . . . . . . . . . . . . . . . . . . Cargo Convoy Interrupts . | . . . . . . . . . . . . . . . . . . . . . . . . . . . . . . . . . Stealth | -11 -10 -10 -10 -9 -8 -7 -7 -7 -7 -6 -6 -6 -6 -6 -6 -5 -5 -5 -5 -5 -5 -4 -4 -4 -4 -4 -3 -3 -3 -2 -2 -2 --------- Run | Jun Mat Min Exi Min Mat Fac Low Low Dat Pro Fac Ext Cet Arc Hub Fac Gar Fac Upp Upp Zhi Pro Fac Upp Upp War Pro Res Qua Res Tes Sec Distress Signals 12 | . 1 . . . . . . . . . . 2 2 . . . . . . . . . . . . . . 5 . . 2 . Communications Jammed 61 | . . . . . . . . . . . . . . . . . . . . . . . 1 . . . . . 7 . 5 48 Distress Signals 61 | . . . . . . . . . . . . . . . . . . . . . . . 1 . . . . . 7 . 5 48 Times Spotted 465 | . 20 6 . 8 34 30 2 3 . 21 . 25 16 13 6 . 35 3 6 7 . 10 10 14 11 . 8 27 30 18 55 47 Peak Tracking Total 12 | . 3 2 . 4 6 3 1 4 . 7 . 5 5 1 2 . 6 1 3 4 . 4 3 7 4 . 5 7 4 5 8 12 Tactical Retreats 14 | . . . . . 1 . . . . . . . . . . . . . . . . . . . . . . 1 5 . 5 2 Traps | -11 -10 -10 -10 -9 -8 -7 -7 -7 -7 -6 -6 -6 -6 -6 -6 -5 -5 -5 -5 -5 -5 -4 -4 -4 -4 -4 -3 -3 -3 -2 -2 -2 ------- Run | Jun Mat Min Exi Min Mat Fac Low Low Dat Pro Fac Ext Cet Arc Hub Fac Gar Fac Upp Upp Zhi Pro Fac Upp Upp War Pro Res Qua Res Tes Sec Traps Triggered 32 | . 2 . . 2 4 2 . . . . 1 4 . . . . 9 . . . . . 1 . . 1 . 2 . . 4 . Indirectly 3 | . . . . . . . . . . . . . . . . . . . . . . . . . . . . . . . 3 . Trap Hack Attempts . | . . . . . . . . . . . . . . . . . . . . . . . . . . . . . . . . . Triggered . | . . . . . . . . . . . . . . . . . . . . . . . . . . . . . . . . . Disarmed . | . . . . . . . . . . . . . . . . . . . . . . . . . . . . . . . . . Reprogrammed . | . . . . . . . . . . . . . . . . . . . . . . . . . . . . . . . . . Reused . | . . . . . . . . . . . . . . . . . . . . . . . . . . . . . . . . . Traps Extracted . | . . . . . . . . . . . . . . . . . . . . . . . . . . . . . . . . . Installed . | . . . . . . . . . . . . . . . . . . . . . . . . . . . . . . . . . Triggered 7 | . . . . . . . 2 . . . . . . . . . . . 2 . . . . 3 . . . . . . . . Machines | -11 -10 -10 -10 -9 -8 -7 -7 -7 -7 -6 -6 -6 -6 -6 -6 -5 -5 -5 -5 -5 -5 -4 -4 -4 -4 -4 -3 -3 -3 -2 -2 -2 ---------- Run | Jun Mat Min Exi Min Mat Fac Low Low Dat Pro Fac Ext Cet Arc Hub Fac Gar Fac Upp Upp Zhi Pro Fac Upp Upp War Pro Res Qua Res Tes Sec Machines Disabled 64 | . . . . . 3 . . . . 1 . 2 1 2 2 . 5 1 . . . . 7 . . . . 1 9 . 20 10 Max in Single Turn 7 | . . . . . 1 . . . . 1 . 1 . 1 2 . 1 1 . . . . 7 . . . . 1 2 . 4 3 Garrison Access 4 | . . . . . . . . . . . . . . . . . . . . . . . 1 . . . . . 1 1 . 1 Garrison Relay 1 | . . . . . . . . . . . . . . . . . 1 . . . . . . . . . . . . . . . Phase Generator 1 | . . . . . . . . . . . . . . . . . 1 . . . . . . . . . . . . . . . Network Hub 1 | . . . . . . . . . . . . . . . 1 . . . . . . . . . . . . . . . . . Machines Repaired . | . . . . . . . . . . . . . . . . . . . . . . . . . . . . . . . . . Machines Sabotaged . | . . . . . . . . . . . . . . . . . . . . . . . . . . . . . . . . . Overloaded Fab Kills . | . . . . . . . . . . . . . . . . . . . . . . . . . . . . . . . . . Hacking | -11 -10 -10 -10 -9 -8 -7 -7 -7 -7 -6 -6 -6 -6 -6 -6 -5 -5 -5 -5 -5 -5 -4 -4 -4 -4 -4 -3 -3 -3 -2 -2 -2 --------- Run | Jun Mat Min Exi Min Mat Fac Low Low Dat Pro Fac Ext Cet Arc Hub Fac Gar Fac Upp Upp Zhi Pro Fac Upp Upp War Pro Res Qua Res Tes Sec Machines Accessed 82 | . 7 . 1 1 9 4 . 1 3 . 2 8 1 . 1 2 3 5 . . 4 . 3 . . . . 3 10 2 7 5 Terminals 60 | . 6 . . . 8 4 . . . . 2 8 1 . 1 1 3 4 . . . . 1 . . . . 2 8 1 6 4 Fabricators 4 | . . . . . . . . . . . . . . . . . . 1 . . . . 1 . . . . 1 . . 1 . Repair Stations . | . . . . . . . . . . . . . . . . . . . . . . . . . . . . . . . . . Recycling Units 2 | . 1 . . . 1 . . . . . . . . . . . . . . . . . . . . . . . . . . . Scanalyzers 1 | . . . . . . . . . . . . . . . . . . . . . . . . . . . . . 1 . . . Garrison Access 5 | . . . . . . . . . . . . . . . . 1 . . . . . . 1 . . . . . 1 1 . 1 Total Hacks 261 | . 19 . 1 1 29 12 . 1 24 . 6 24 1 . 3 7 6 21 . . 17 . 5 . . . . 14 27 5 23 15 Successful 149 | . 6 . 1 1 12 6 . 1 24 . 2 16 1 . 2 4 3 12 . . 17 . 4 . . . . 8 11 3 8 7 Failed 112 | . 13 . . . 17 6 . . . . 4 8 . . 1 3 3 9 . . . . 1 . . . . 6 16 2 15 8 Catastrophic 14 | . 1 . . . . 1 . . . . 1 . . . . . . . . . . . . . . . . 1 5 1 3 1 Database Lockouts . | . . . . . . . . . . . . . . . . . . . . . . . . . . . . . . . . . Manual 137 | . 19 . . . 28 7 . . . . 6 20 . . 2 6 . 11 . . . . 1 . . . . 8 13 3 13 . Terminals 190 | . 18 . . . 28 12 . . . . 6 24 1 . 3 6 6 17 . . . . 3 . . . . 8 20 4 20 14 Fabricators 14 | . . . . . . . . . . . . . . . . . . 4 . . . . 1 . . . . 6 . . 3 . Repair Stations . | . . . . . . . . . . . . . . . . . . . . . . . . . . . . . . . . . Recycling Units 2 | . 1 . . . 1 . . . . . . . . . . . . . . . . . . . . . . . . . . . Scanalyzers 6 | . . . . . . . . . . . . . . . . . . . . . . . . . . . . . 6 . . . Garrison Access 5 | . . . . . . . . . . . . . . . . 1 . . . . . . 1 . . . . . 1 1 . 1 Terminal Hacks 97 | . 4 . 1 1 7 3 . 1 24 . 1 8 1 . 1 2 3 5 . . 17 . 2 . . . . 3 3 1 3 6 Record 15 | . . . 1 . . . . . 6 . . . . . . . . . . . 5 . . . . . . 2 1 . . . Part Schematic 15 | . 1 . . . . . . . 10 . . . . . . . . . . . 4 . . . . . . . . . . . Robot Schematic 5 | . . . . . . . . . 5 . . . . . . . . . . . . . . . . . . . . . . . Robot Analysis 12 | . 2 . . . 4 1 . . . . . . . . . . . 1 . . 4 . . . . . . . . . . . Prototype ID Bank 9 | . . . . . . . . . 3 . . 2 . . . . . . . . 4 . . . . . . . . . . . Open Door 5 | . . . . 1 . . . 1 . . . . 1 . . . . . . . . . . . . . . . . . . 2 Level Access Points 1 | . . . . . . . . . . . . . . . 1 . . . . . . . . . . . . . . . . . Branch Access Points 4 | . . . . . . 1 . . . . . . . . . 1 . 1 . . . . 1 . . . . . . . . . Emergency Access Points 1 | . . . . . . . . . . . . . . . . . 1 . . . . . . . . . . . . . . . Terminal Index 8 | . . . . . 1 . . . . . 1 1 . . . 1 . 1 . . . . 1 . . . . 1 . 1 . . Alert Level 5 | . . . . . . . . . . . . 2 . . . . . . . . . . . . . . . . . . . 3 Unreport Threat 7 | . . . . . 1 . . . . . . 2 . . . . . . . . . . . . . . . . 1 . 2 1 Locate Traps 7 | . 1 . . . 1 1 . . . . . . . . . . . 2 . . . . . . . . . . 1 . 1 . Zone Layout 1 | . . . . . . . . . . . . 1 . . . . . . . . . . . . . . . . . . . . Patrol Navigation 1 | . . . . . . . . . . . . . . . . . 1 . . . . . . . . . . . . . . . Security Stations 1 | . . . . . . . . . . . . . . . . . 1 . . . . . . . . . . . . . . . Fabricator Hacks 4 | . . . . . . . . . . . . . . . . . . 2 . . . . 1 . . . . 1 . . . . Network Status 3 | . . . . . . . . . . . . . . . . . . 1 . . . . 1 . . . . 1 . . . . Load Schematic 1 | . . . . . . . . . . . . . . . . . . 1 . . . . . . . . . . . . . . Repair Station Hacks . | . . . . . . . . . . . . . . . . . . . . . . . . . . . . . . . . . Recycling Unit Hacks . | . . . . . . . . . . . . . . . . . . . . . . . . . . . . . . . . . Scanalyzer 5 | . . . . . . . . . . . . . . . . . . . . . . . . . . . . . 5 . . . Insert Component 5 | . . . . . . . . . . . . . . . . . . . . . . . . . . . . . 5 . . . Garrison Access Hacks 5 | . . . . . . . . . . . . . . . . 1 . . . . . . 1 . . . . . 1 1 . 1 Unlock Access 1 | . . . . . . . . . . . . . . . . 1 . . . . . . . . . . . . . . . . Seal Access 4 | . . . . . . . . . . . . . . . . . . . . . . . 1 . . . . . 1 1 . 1 Unauthorized Hacks 38 | . 2 . . . 5 3 . . . . 1 8 . . 1 1 . 5 . . . . . . . . . 4 2 1 5 . Terminals 31 | . 1 . . . 4 3 . . . . 1 8 . . 1 1 . 3 . . . . . . . . . 2 2 1 4 . Track 2 | . . . . . . . . . . . . 1 . . . . . . . . . . . . . . . 1 . . . . Assimilate 2 | . 1 . . . . . . . . . . . . . . . . 1 . . . . . . . . . . . . . . Botnet 23 | . . . . . 3 3 . . . . 1 5 . . 1 1 . 2 . . . . . . . . . 1 2 1 3 . Disrupt 1 | . . . . . . . . . . . . 1 . . . . . . . . . . . . . . . . . . . . Operators 3 | . . . . . 1 . . . . . . 1 . . . . . . . . . . . . . . . . . . 1 . Fabricators 5 | . . . . . . . . . . . . . . . . . . 2 . . . . . . . . . 2 . . 1 . Report 2 | . . . . . . . . . . . . . . . . . . 1 . . . . . . . . . 1 . . . . Liberate 3 | . . . . . . . . . . . . . . . . . . 1 . . . . . . . . . 1 . . 1 . Repair Stations . | . . . . . . . . . . . . . . . . . . . . . . . . . . . . . . . . . Recycling Units 2 | . 1 . . . 1 . . . . . . . . . . . . . . . . . . . . . . . . . . . Tunnel 2 | . 1 . . . 1 . . . . . . . . . . . . . . . . . . . . . . . . . . . Scanalyzers . | . . . . . . . . . . . . . . . . . . . . . . . . . . . . . . . . . Garrison Access . | . . . . . . . . . . . . . . . . . . . . . . . . . . . . . . . . . Data Cores Recovered 3 | . . . . . 1 . . . . . . . . . . . . . . . . . . . . . . . . 1 1 . Used . | . . . . . . . . . . . . . . . . . . . . . . . . . . . . . . . . . Hacking Detections 57 | . 6 . . . 8 4 . . . . 2 8 . . 1 . 2 4 . . . . 1 . . . . 3 7 1 7 3 Full Trace Events 1 | . . . . . . 1 . . . . . . . . . . . . . . . . . . . . . . . . . . Feedback Events . | . . . . . . . . . . . . . . . . . . . . . . . . . . . . . . . . . Feedback Blocked . | . . . . . . . . . . . . . . . . . . . . . . . . . . . . . . . . . Robot Schematics Acquired 5 | . . . . . . . . . 5 . . . . . . . . . . . . . . . . . . . . . . . Robots Built . | . . . . . . . . . . . . . . . . . . . . . . . . . . . . . . . . . Authchips . | . . . . . . . . . . . . . . . . . . . . . . . . . . . . . . . . . Time . | . . . . . . . . . . . . . . . . . . . . . . . . . . . . . . . . . Total Robot Build Rating . | . . . . . . . . . . . . . . . . . . . . . . . . . . . . . . . . . Part Schematics Acquired 15 | . 1 . . . . . . . 10 . . . . . . . . . . . 4 . . . . . . . . . . . Parts Built . | . . . . . . . . . . . . . . . . . . . . . . . . . . . . . . . . . Authchips . | . . . . . . . . . . . . . . . . . . . . . . . . . . . . . . . . . Time . | . . . . . . . . . . . . . . . . . . . . . . . . . . . . . . . . . Total Part Build Rating . | . . . . . . . . . . . . . . . . . . . . . . . . . . . . . . . . . Parts Repaired . | . . . . . . . . . . . . . . . . . . . . . . . . . . . . . . . . . Time . | . . . . . . . . . . . . . . . . . . . . . . . . . . . . . . . . . Parts Recycled . | . . . . . . . . . . . . . . . . . . . . . . . . . . . . . . . . . Recycled Matter . | . . . . . . . . . . . . . . . . . . . . . . . . . . . . . . . . . Retrieved Matter . | . . . . . . . . . . . . . . . . . . . . . . . . . . . . . . . . . Retrieved Components . | . . . . . . . . . . . . . . . . . . . . . . . . . . . . . . . . . Parts Scanalyzed . | . . . . . . . . . . . . . . . . . . . . . . . . . . . . . . . . . Part Schematics Acquired . | . . . . . . . . . . . . . . . . . . . . . . . . . . . . . . . . . Parts Damaged . | . . . . . . . . . . . . . . . . . . . . . . . . . . . . . . . . . Bothacking | -11 -10 -10 -10 -9 -8 -7 -7 -7 -7 -6 -6 -6 -6 -6 -6 -5 -5 -5 -5 -5 -5 -4 -4 -4 -4 -4 -3 -3 -3 -2 -2 -2 ------------ Run | Jun Mat Min Exi Min Mat Fac Low Low Dat Pro Fac Ext Cet Arc Hub Fac Gar Fac Upp Upp Zhi Pro Fac Upp Upp War Pro Res Qua Res Tes Sec Used RIF Installer 1 | . . . . . . . . . . . . . . . . . 1 . . . . . . . . . . . . . . . Robots Hacked 9 | . . . . . . . . . . . . . . . . . . . . . . . . . . . . . 4 1 4 . Non-combat 3 | . . . . . . . . . . . . . . . . . . . . . . . . . . . . . 1 1 1 . Combat 6 | . . . . . . . . . . . . . . . . . . . . . . . . . . . . . 3 . 3 . Robot Hacks Applied 11 | . . . . . . . . . . . . . . . . . . . . . . . . . . . . . 4 3 4 . no_distress 2 | . . . . . . . . . . . . . . . . . . . . . . . . . . . . . 1 . 1 . purge_threat 2 | . . . . . . . . . . . . . . . . . . . . . . . . . . . . . . 2 . . block_reporting 1 | . . . . . . . . . . . . . . . . . . . . . . . . . . . . . . 1 . . disable_scanner 6 | . . . . . . . . . . . . . . . . . . . . . . . . . . . . . 3 . 3 . Relay Couplers Released 7 | . . . . . . . . . . . . . . . . . 3 . . . . . . . . . . 4 . . . . Machine Destruction 3 | . . . . . . . . . . . . . . . . . 3 . . . . . . . . . . . . . . . Programmers 4 | . . . . . . . . . . . . . . . . . . . . . . . . . . . . 4 . . . . Attached 2 | . . . . . . . . . . . . . . . . . . . . . . . . . . . . . 1 1 . . Fabnet Peak Effective % . | . . . . . . . . . . . . . . . . . . . . . . . . . . . . . . . . . Robots Rewired 26 | . . . . . . . . . . 2 . 14 . . . . 7 . . . . . . 2 . . . . . . 1 . Allies Hacked . | . . . . . . . . . . . . . . . . . . . . . . . . . . . . . . . . . Hacks Repelled . | . . . . . . . . . . . . . . . . . . . . . . . . . . . . . . . . . Allies | -11 -10 -10 -10 -9 -8 -7 -7 -7 -7 -6 -6 -6 -6 -6 -6 -5 -5 -5 -5 -5 -5 -4 -4 -4 -4 -4 -3 -3 -3 -2 -2 -2 -------- Run | Jun Mat Min Exi Min Mat Fac Low Low Dat Pro Fac Ext Cet Arc Hub Fac Gar Fac Upp Upp Zhi Pro Fac Upp Upp War Pro Res Qua Res Tes Sec Total Allies 48 | . . 2 . . . . . . . 3 . 29 . . . . 9 1 . . . . . 3 . . . . . . 1 . Largest Group 18 | . . 2 1 . . . . . . 2 2 18 17 6 1 . 6 1 1 1 . . . 2 2 2 . . . . 1 . Highest-Rated Group 657 | . . 36 5 . . . . . . 96 64 657 626 277 28 . 272 26 26 26 . . . 97 97 85 . . . . 58 . Highest-Rated Ally 159 | . . 31 5 . . . . . . 96 32 159 159 153 28 . 68 26 26 26 . . . 49 49 49 . . . . 58 . Total Orders 22 | . . . . . . . . . . . . . 2 2 . . 2 2 11 1 . . . 2 . . . . . . . . STAY 12 | . . . . . . . . . . . . . 1 1 . . 1 1 6 1 . . . 1 . . . . . . . . FOLLOW 10 | . . . . . . . . . . . . . 1 1 . . 1 1 5 . . . . 1 . . . . . . . . Ally Attacks 341 | . . 4 . . . . . . . 12 . 165 78 6 4 . 44 . . . . . . 19 7 . . . . . 2 . Total Damage 8342 | . . 84 . . . . . . . 322 . 3524 1793 131 43 . 1762 . . . . . . 473 120 . . . . . 90 . Kills 57 | . . . . . . . . . . 3 . 22 15 . . . 10 . . . . . . 4 3 . . . . . . . Allies Corrupted 1 | . . . . . . . . . . . . . . . . . . . . . . . . . . 1 . . . . . . Allies Melted 2 | . . . . . . . . . . . . 2 . . . . . . . . . . . . . . . . . . . . Intel | -11 -10 -10 -10 -9 -8 -7 -7 -7 -7 -6 -6 -6 -6 -6 -6 -5 -5 -5 -5 -5 -5 -4 -4 -4 -4 -4 -3 -3 -3 -2 -2 -2 ------- Run | Jun Mat Min Exi Min Mat Fac Low Low Dat Pro Fac Ext Cet Arc Hub Fac Gar Fac Upp Upp Zhi Pro Fac Upp Upp War Pro Res Qua Res Tes Sec Robot Analysis Total 12 | . 2 . . . 4 1 . . . . . . . . . . . 1 . . 4 . . . . . . . . . . . Derelict Logs Recovered 10 | . . 2 . . . . 2 . . . . . . . . . . . 2 . . 1 . 2 1 . . . . . . . Drone Launches . | . . . . . . . . . . . . . . . . . . . . . . . . . . . . . . . . . Drone Recoveries . | . . . . . . . . . . . . . . . . . . . . . . . . . . . . . . . . . Exploration | -11 -10 -10 -10 -9 -8 -7 -7 -7 -7 -6 -6 -6 -6 -6 -6 -5 -5 -5 -5 -5 -5 -4 -4 -4 -4 -4 -3 -3 -3 -2 -2 -2 ------------- Run | Jun Mat Min Exi Min Mat Fac Low Low Dat Pro Fac Ext Cet Arc Hub Fac Gar Fac Upp Upp Zhi Pro Fac Upp Upp War Pro Res Qua Res Tes Sec Turns Passed 30667 | . 1041 1409 480 2201 1937 1401 1065 801 128 673 369 1403 289 401 274 215 2205 479 1128 643 273 942 743 1018 681 246 857 1632 1654 936 2073 1070 Spaces Moved 13847 | 1 493 491 151 610 723 608 554 459 76 347 237 729 141 114 131 118 1049 247 584 322 147 440 375 475 341 110 264 608 826 515 947 614 Core 4 | . . . . . . . . . . . . . . . . . . . . . . . 4 . . . . . . . . . Treads 2174 | . 403 491 151 610 268 23 . . . . . . . . . . . . . . . . . . . 19 102 107 . . . . Legs 1014 | 1 90 . . . . . . . . . . . . . . . . . . . . . . . . . . . . . 420 503 Wheels 10544 | . . . . . 455 585 554 459 76 347 237 729 141 114 131 118 1049 247 584 322 147 440 371 475 341 91 162 501 826 515 527 . Hover . | . . . . . . . . . . . . . . . . . . . . . . . . . . . . . . . . . Flight . | . . . . . . . . . . . . . . . . . . . . . . . . . . . . . . . . . Fastest Speed 50 | 120 120 240 320 320 135 155 155 170 170 145 145 160 160 160 175 175 160 175 175 175 175 175 50 120 185 185 187 170 130 130 119 160 Average Speed 186 | 120 163 266 320 320 222 175 158 170 170 160 146 160 163 173 175 175 174 175 175 175 175 185 145 161 185 208 275 247 158 141 153 171 Slowest Speed 320 | 120 240 320 320 320 320 320 170 170 170 170 160 160 175 175 175 175 175 175 175 175 175 190 190 185 185 320 320 270 187 147 187 175 Overloaded Moves . | . . . . . . . . . . . . . . . . . . . . . . . . . . . . . . . . . Propulsion Burnouts . | . . . . . . . . . . . . . . . . . . . . . . . . . . . . . . . . . Robots Hopped . | . . . . . . . . . . . . . . . . . . . . . . . . . . . . . . . . . Cave-ins Triggered . | . . . . . . . . . . . . . . . . . . . . . . . . . . . . . . . . . Teleports 1 | . . . . . . . . . . . . . . . . . . . . . . . . . . . . . . . . 1 Microwarps 8 | . . . . . . . . . . . . . . . . . . . . . . . . . . . . . . . . 8 Exploration Rate (%) 52 | 2 91 94 54 99 57 18 62 59 68 52 8 85 68 74 15 3 84 10 66 54 60 61 11 63 56 18 46 33 93 17 91 46 Regions Visited 32 Branch Regions 22 Pre-discovered Areas 12 | . 1 2 1 . 1 . . . 1 . . . . . . . . . 2 . 3 . . . 1 . . . . . . . Known Exits Taken 17 | . . . . . . 1 . . . . . . . . 1 1 . 1 1 1 1 1 1 1 1 1 1 1 1 1 1 . Unknown Exits Taken 14 | 1 1 1 1 1 1 . 1 1 1 1 1 1 1 1 . . . . . . . . . . . . . . . . . . Scrap Searched 27 | . . 1 . 2 . . 1 8 . 2 . . . . . . . . 3 . . 3 . 2 3 . 2 . . . . . Spaces Dug 80 | . . . . . . 1 5 . . 10 . . . . . . . 2 15 . . . 3 . . 1 . 4 32 2 2 3 Terrain Destroyed 1084 | . . . . 18 35 24 16 19 . 67 . 5 . 7 180 . 109 4 41 19 . 18 33 12 8 1 3 14 84 28 108 231 Melee . | . . . . . . . . . . . . . . . . . . . . . . . . . . . . . . . . . Projectile 336 | . . . . . 4 10 9 1 . 3 . 5 . 7 3 . . 4 40 19 . 18 13 12 8 1 3 14 41 9 94 18 AOE 748 | . . . . 18 31 14 7 18 . 64 . . . . 177 . 109 . 1 . . . 20 . . . . . 43 19 14 213 Terrain Rammed . | . . . . . . . . . . . . . . . . . . . . . . . . . . . . . . . . . Walls Destroyed . | . . . . . . . . . . . . . . . . . . . . . . . . . . . . . . . . . Machines Disabled . | . . . . . . . . . . . . . . . . . . . . . . . . . . . . . . . . . Actions | -11 -10 -10 -10 -9 -8 -7 -7 -7 -7 -6 -6 -6 -6 -6 -6 -5 -5 -5 -5 -5 -5 -4 -4 -4 -4 -4 -3 -3 -3 -2 -2 -2 --------- Run | Jun Mat Min Exi Min Mat Fac Low Low Dat Pro Fac Ext Cet Arc Hub Fac Gar Fac Upp Upp Zhi Pro Fac Upp Upp War Pro Res Qua Res Tes Sec Total 17054 | . 622 542 150 835 904 814 710 475 75 415 254 933 183 255 153 126 1292 286 644 355 159 514 503 646 363 127 327 688 1051 643 1399 611 Wait 1301 | . 18 17 . 193 43 76 127 . . 13 8 65 16 93 6 4 46 22 31 9 . 32 20 70 6 14 7 18 76 50 202 19 Move 13712 | . 492 490 150 609 722 607 553 458 75 346 236 728 140 113 130 118 1048 246 583 321 146 439 374 474 340 109 263 607 825 514 946 510 Hop . | . . . . . . . . . . . . . . . . . . . . . . . . . . . . . . . . . Pick Up 232 | . 21 6 . 6 17 18 1 5 . 4 3 18 5 1 3 2 12 5 2 . 5 6 29 4 2 . 5 10 12 7 19 4 Fast Attach 106 | . 7 . . . 15 5 1 . . 1 2 2 1 4 . . 10 . . . . 1 9 2 . . 6 11 8 4 14 3 Attach 156 | . 6 1 . 5 12 11 5 4 . 6 1 7 1 3 . 2 8 2 4 4 2 9 13 3 . 1 3 6 13 6 12 6 Detach 27 | . 1 . . 1 . 2 2 . . . . . . 2 . . . . 1 . 1 1 1 . . . 1 1 9 1 2 1 Swap 126 | . 3 1 . 5 5 8 3 1 . 1 2 2 4 6 . . 8 . 2 . . . 4 9 . 2 1 2 13 12 23 9 Drop 180 | . 9 1 . 2 16 17 1 3 . 1 . 17 7 3 2 . 8 5 1 . . 1 9 7 . . 7 9 18 5 29 2 Fire 1000 | . 59 22 . 14 74 70 17 4 . 33 2 22 9 30 12 . 70 6 20 21 5 25 44 63 15 1 34 24 77 43 127 57 Melee 11 | . . . . . . . . . . . . . . . . . . . . . . . . 11 . . . . . . . . Ram 3 | . . . . . . . . . . . . . . . . . . . . . . . . 3 . . . . . . . . Kick 6 | . 3 . . . . . . . . . . . . . . . . . . . . . . . . . . . . 1 2 . Crush 7 | . 3 4 . . . . . . . . . . . . . . . . . . . . . . . . . . . . . . Escape Stasis 73 | . . . . . . . . . . . . 16 . . . . 40 . . . . . . . . . . . . . 17 . Rewire 114 | . . . . . . . . . . 10 . 56 . . . . 42 . . . . . . . . . . . . . 6 . Trap . | . . . . . . . . . . . . . . . . . . . . . . . . . . . . . . . . . Miscellaneous . | . . . . . . . . . . . . . . . . . . . . . . . . . . . . . . . . . Route ------- -11/Junkyard -10/Materials (discovered 5 exits: [*Mat x3] / [*Min x2]) -10/Mines (discovered 3 exits: [*Mat x2] / *Exi) -10/Exiles -9/Mines (discovered 2 exits: *Mat x2) -8/Materials (discovered 3 exits: *Fac x3) -7/Factory (discovered 3 exits: Sto / *Low x2) -7/Lower Caves -7/Lower Caves -7/Data Miner -6/Proximity Caves -6/Factory (discovered 5 exits: Fac x3 / Low / *Ext) -6/Extension (discovered 2 exits: *Fac / *Cet) -6/Cetus (discovered 2 exits: *Fac / [*Arc]) -6/Archives -6/Hub_04(d) (discovered 4 exits: *Fac x4) -5/Factory (discovered 3 exits: Upp x2 / Gar) -5/Garrison (discovered 4 exits: *Fac x4) -5/Factory (discovered 2 exits: *Upp x2) -5/Upper Caves -5/Upper Caves -5/Zhirov -4/Proximity Caves -4/Factory (discovered 2 exits: *Upp x2) -4/Upper Caves -4/Upper Caves (discovered 2 exits: *Res / *War) -4/Warlord -3/Proximity Caves -3/Research -3/Quarantine -2/Research -2/Testing (discovered 2 exits: [*Acc] / *Sec) -2/Section 7 History --------- Turn | Location | Event 1 | -11/Junkyard | Discovered new exit (range 0) 1 | -11/Junkyard | Entered Materials 79 | -10/Materials | Discovered new exit (range 16) 285 | -10/Materials | Discovered new exit (range 15) 318 | -10/Materials | Build established: Mutant 428 | -10/Materials | Discovered new exit (range 8) 477 | -10/Materials | Discovered new exit (range 12) 871 | -10/Materials | Discovered new exit (range 9) 1042 | -10/Materials | Entered Mines 1043 | -10/Mines | Met a Derelict bent on vengeance 1554 | -10/Mines | Deemed a non-threat by the Exiles lab entrance 1556 | -10/Mines | Discovered new exit (range 5) 1734 | -10/Mines | Learned location of Storage (-7) 1888 | -10/Mines | Joined a pair of Derelicts in attacking an 0b10 outpost 2014 | -10/Mines | Discovered new exit (range 15) 2018 | -10/Mines | Learned Materials terminal intel 2043 | -10/Mines | Discovered new exit (range 6) 2065 | -10/Mines | Core integrity fell below 50% 2451 | -10/Mines | Entered Exiles 2451 | -10/Exiles | Accompanied by 1 ally 2531 | -10/Exiles | Met 8R-AWN 2583 | -10/Exiles | Met EX-HEX 2733 | -10/Exiles | Met EX-DEC 2784 | -10/Exiles | Learned location of Zion (-6) 2906 | -10/Exiles | Discovered new exit (range 10) 2931 | -10/Exiles | Entered Mines 2936 | -9/Mines | Assembled infested the area 4132 | -9/Mines | Discovered new exit (range 7) 4579 | -9/Mines | Discovered new exit (range 11) 5132 | -9/Mines | Entered Materials 5132 | -8/Materials | Evolved 4 slots: Utility x4 5133 | -8/Materials | Loaded intel: 12 terminal locations 5410 | -8/Materials | Discovered new exit (range 10) 6439 | -8/Materials | Build established: Scavenger-Mutant 6594 | -8/Materials | Discovered new exit (range 13) 6947 | -8/Materials | Garrison activated, responded to threat 6998 | -8/Materials | Discovered new exit (range 15) 7069 | -8/Materials | Entered Factory 7069 | -7/Factory | Evolved 2 slots: Utility x2 7559 | -7/Factory | Identified exit to Storage 7559 | -7/Factory | Identified exit to Lower Caves 8470 | -7/Factory | Entered Lower Caves 8471 | -7/Lower Caves | Encountered a Warlord checkpoint 8480 | -7/Lower Caves | Learned 8 Factory zone layouts 8495 | -7/Lower Caves | Learned 8 Factory zone layouts 8823 | -7/Lower Caves | Found Alien Artifact 8823 | -7/Lower Caves | Identified Core Expander 8823 | -7/Lower Caves | Installed Core Expander, added new Weapon slot 9311 | -7/Lower Caves | Spotted B-75 Beast 9342 | -7/Lower Caves | Destroyed B-75 Beast 9511 | -7/Lower Caves | Discovered new exit (range 15) 9535 | -7/Lower Caves | Entered another Lower Caves area 10317 | -7/Lower Caves | Discovered new exit (range 12) 10336 | -7/Lower Caves | Entered Data Miner 10336 | -7/Data Miner | Discovered new exit (range 6) 10369 | -7/Data Miner | Met Data Miner 10398 | -7/Data Miner | Learned location of Section 7 (-2) 10398 | -7/Data Miner | Acquired the access code to Warlord's prototype stash 10423 | -7/Data Miner | Received God Mode back door access code from Data Miner 10464 | -7/Data Miner | Entered Proximity Caves 10466 | -6/Proximity Caves | Attracted the attention of an 0b10 checkpoint 10583 | -6/Proximity Caves | Escorted by Enhanced Grunt 10951 | -6/Proximity Caves | Attracted the attention of an 0b10 outpost 11017 | -6/Proximity Caves | Lost 7 parts (1p2n2u2w) 11018 | -6/Proximity Caves | Destroyed 11 combat bots 11118 | -6/Proximity Caves | Discovered new exit (range 9) 11137 | -6/Proximity Caves | Entered Factory 11137 | -6/Factory | Accompanied by 2 allies 11137 | -6/Factory | Evolved 2 slots: Power x1, Utility x1 11138 | -6/Factory | Identified exit to Lower Caves 11138 | -6/Factory | Identified exit to Factory 11297 | -6/Factory | Build established: Derelict-Mutant 11429 | -6/Factory | Discovered new exit (range 15) 11506 | -6/Factory | Entered Extension 11506 | -6/Extension | Accompanied by 2 allies 11568 | -6/Extension | Rescued a captive Derelict 11569 | -6/Extension | Rescued a captive Derelict 11583 | -6/Extension | Rescued A7 11613 | -6/Extension | Build established: Hacker-Mutant 11688 | -6/Extension | Rescued a captive Derelict 11692 | -6/Extension | Rescued a captive Derelict 11731 | -6/Extension | Incoming investigation squad redirected 11731 | -6/Extension | Rescued a captive Derelict 11822 | -6/Extension | Rescued a captive Derelict 11825 | -6/Extension | Rescued a captive Derelict 12090 | -6/Extension | Build established: Commander-Mutant 12257 | -6/Extension | Spotted B-75 Beast 12270 | -6/Extension | Allies destroyed B-75 Beast 12274 | -6/Extension | Spotted B-75 Beast 12293 | -6/Extension | Allies destroyed B-75 Beast 12355 | -6/Extension | Rescued a captive Derelict 12356 | -6/Extension | Rescued a captive Derelict 12393 | -6/Extension | Rescued a captive Derelict 12469 | -6/Extension | Rescued a captive Derelict 12729 | -6/Extension | Rescued a captive Derelict 12730 | -6/Extension | Rescued a captive Derelict 12799 | -6/Extension | Rescued a captive Derelict 12866 | -6/Extension | Discovered exit to Factory (range 10) 12867 | -6/Extension | Discovered new exit (range 6) 12909 | -6/Extension | Entered Cetus 12909 | -6/Cetus | Accompanied by 17 allies (A7) 12914 | -6/Cetus | Acquired a Cetus Manufacturing Module code from A7 12934 | -6/Cetus | Spotted Cetus Guard 12934 | -6/Cetus | Spotted Cetus Guard 12936 | -6/Cetus | Spotted Cetus Guard 12939 | -6/Cetus | Destroyed Cetus Guard 12939 | -6/Cetus | Spotted Cetus Guard 12941 | -6/Cetus | Allies destroyed Cetus Guard 12944 | -6/Cetus | Allies destroyed Cetus Guard 12945 | -6/Cetus | Destroyed Cetus Guard 13054 | -6/Cetus | Escorted A7 to Cetus Mainframe 13073 | -6/Cetus | Discovered new exit (range 15) 13100 | -6/Cetus | Spotted Cetus Guard 13100 | -6/Cetus | Spotted Cetus Guard 13103 | -6/Cetus | Spotted Cetus Guard 13103 | -6/Cetus | Spotted Cetus Guard 13114 | -6/Cetus | Allies destroyed Cetus Guard 13118 | -6/Cetus | Destroyed Cetus Guard 13121 | -6/Cetus | Allies destroyed Cetus Guard 13124 | -6/Cetus | Allies destroyed Cetus Guard 13131 | -6/Cetus | Discovered exit to Factory (range 15) 13142 | -6/Cetus | Met Revision 17 13198 | -6/Cetus | Entered Archives 13198 | -6/Archives | Accompanied by 6 allies (A7) 13203 | -6/Archives | Received a hacking code to weaken MAIN.C 13569 | -6/Archives | Discovered new exit (range 16) 13599 | -6/Archives | Entered Hub_04(d) 13599 | -6/Hub_04(d) | Accompanied by 1 ally 13844 | -6/Hub_04(d) | Network Hub disabled 13847 | -6/Hub_04(d) | Garrison activated, responded to threat 13873 | -6/Hub_04(d) | Entered Factory 13873 | -5/Factory | Evolved 2 slots: Utility x2 13995 | -5/Factory | Identified exit to Upper Caves 14075 | -5/Factory | Build established: Scavenger-Mutant 14088 | -5/Factory | Identified exit to Garrison 14088 | -5/Factory | Entered Garrison 14130 | -5/Garrison | Triggered checkpoint 14272 | -5/Garrison | Triggered checkpoint 14274 | -5/Garrison | Triggered checkpoint 14279 | -5/Garrison | Spotted B-75 Beast 14329 | -5/Garrison | Destroyed B-75 Beast 14437 | -5/Garrison | Lost 3 parts (2u1w) 14540 | -5/Garrison | Found embedded Infiltrators 14619 | -5/Garrison | Discovered new exit (range 10) 14633 | -5/Garrison | Identified exit to Factory 14656 | -5/Garrison | Triggered checkpoint 14866 | -5/Garrison | Triggered checkpoint 14960 | -5/Garrison | Triggered checkpoint 15118 | -5/Garrison | Phase Generator disabled 15126 | -5/Garrison | Garrison Relay disabled 15302 | -5/Garrison | Triggered checkpoint 15686 | -5/Garrison | Triggered checkpoint 15721 | -5/Garrison | Discovered exit to Factory (range 3) 15791 | -5/Garrison | Discovered exit to Factory (range 11) 15854 | -5/Garrison | Triggered checkpoint 15982 | -5/Garrison | Triggered checkpoint 16062 | -5/Garrison | Installed Relay Interface Framework 16121 | -5/Garrison | Lost 3 parts (1p1u1w) 16254 | -5/Garrison | Discovered exit to Factory (range 16) 16273 | -5/Garrison | Learned Factory security intel 16293 | -5/Garrison | Entered Factory 16479 | -5/Factory | Build established: Scavenger-Gunner 16685 | -5/Factory | Found Powered Armor 16772 | -5/Factory | Entered Upper Caves 16772 | -5/Upper Caves | Accompanied by 1 ally 16881 | -5/Upper Caves | Attracted the attention of an 0b10 checkpoint 16902 | -5/Upper Caves | Learned location of Warlord (-4) 17360 | -5/Upper Caves | Encountered a Warlord checkpoint 17679 | -5/Upper Caves | Spotted B-75 Beast 17879 | -5/Upper Caves | Discovered new exit (range 10) 17896 | -5/Upper Caves | Identified exit to Upper Caves 17900 | -5/Upper Caves | Entered another Upper Caves area 17900 | -5/Upper Caves | Accompanied by 1 ally 18463 | -5/Upper Caves | Lost 3 parts (1p2u) 18514 | -5/Upper Caves | Discovered new exit (range 14) 18542 | -5/Upper Caves | Identified exit to Zhirov 18543 | -5/Upper Caves | Entered Zhirov 18543 | -5/Zhirov | Discovered new exit (range 3) 18575 | -5/Zhirov | Met Zhirov 18613 | -5/Zhirov | Found Alien Artifact 18615 | -5/Zhirov | Identified Integrated Reactor 18615 | -5/Zhirov | Installed Integrated Reactor, increased core energy generation (+10) 18636 | -5/Zhirov | Found Alien Artifact 18759 | -5/Zhirov | Learned location of Quarantine (-3) 18759 | -5/Zhirov | Learned location of Testing (-2) 18759 | -5/Zhirov | Learned location of Command (-1) 18769 | -5/Zhirov | Zhirov requested help retrieving the SGEMP Prototype 18815 | -5/Zhirov | Identified exit to Proximity Caves 18816 | -5/Zhirov | Entered Proximity Caves 18899 | -4/Proximity Caves | Lost 5 parts (1n4u) 18935 | -4/Proximity Caves | Learned 4 Research zone layouts 18980 | -4/Proximity Caves | Attracted the attention of an 0b10 checkpoint 19326 | -4/Proximity Caves | Lost 4 parts (2u2w) 19629 | -4/Proximity Caves | Build established: Scavenger-Tank 19674 | -4/Proximity Caves | Discovered new exit (range 11) 19699 | -4/Proximity Caves | Identified exit to Factory 19758 | -4/Proximity Caves | Entered Factory 19758 | -4/Factory | Evolved 2 slots: Propulsion x2 19783 | -4/Factory | Identified exit to Upper Caves 20216 | -4/Factory | Lost 9 parts (2p1n4u2w) 20501 | -4/Factory | Entered Upper Caves 20502 | -4/Upper Caves | Encountered a Warlord checkpoint 20572 | -4/Upper Caves | Attracted the attention of an 0b10 outpost 20854 | -4/Upper Caves | Build established: Scavenger-Mutant 20928 | -4/Upper Caves | Learned Research garrison access intel 20975 | -4/Upper Caves | Spotted B-86 Titan 21383 | -4/Upper Caves | Build established: Scavenger-Tank 21383 | -4/Upper Caves | Attracted the attention of an 0b10 checkpoint 21400 | -4/Upper Caves | Learned Research non-interactive machine intel 21480 | -4/Upper Caves | Discovered new exit (range 14) 21509 | -4/Upper Caves | Identified exit to Upper Caves 21519 | -4/Upper Caves | Entered another Upper Caves area 21519 | -4/Upper Caves | Accompanied by 2 allies 21519 | -4/Upper Caves | Discovered new exit (range 5) 21527 | -4/Upper Caves | Identified exit to Research 21717 | -4/Upper Caves | Encountered a Warlord checkpoint 22174 | -4/Upper Caves | Discovered new exit (range 15) 22198 | -4/Upper Caves | Identified exit to Warlord 22200 | -4/Upper Caves | Entered Warlord 22200 | -4/Warlord | Accompanied by 2 allies 22302 | -4/Warlord | RIF detected upon attempting to enter Warlord's base 22302 | -4/Warlord | Attacked by Warlord forces 22394 | -4/Warlord | Discovered new exit (range 12) 22423 | -4/Warlord | Identified exit to Proximity Caves 22446 | -4/Warlord | Entered Proximity Caves 22971 | -3/Proximity Caves | Build established: Scavenger-Mutant 23275 | -3/Proximity Caves | Discovered exit to Research (range 8) 23303 | -3/Proximity Caves | Entered Research 23303 | -3/Research | Evolved 2 slots: Utility x2 23305 | -3/Research | Loaded intel: 58 non-interactive machine locations 23306 | -3/Research | Loaded intel: 3 garrison access locations 23503 | -3/Research | Revision forces began assault on 0b10 23507 | -3/Research | Met up with Revision 17++ 23684 | -3/Research | P-80 Master assimilated allied Revision 24003 | -3/Research | Research terminal network offline 24377 | -3/Research | Build established: Hacker-Tank 24417 | -3/Research | Found Prototype Device 24417 | -3/Research | Identified Exp. EM Disruption Field 24667 | -3/Research | Found Fusion Bomb Launcher 24730 | -3/Research | Build established: Scavenger-Mutant 24811 | -3/Research | Spotted Striker 24811 | -3/Research | Spotted Striker 24843 | -3/Research | Spotted Striker 24913 | -3/Research | Discovered new exit (range 12) 24933 | -3/Research | Identified exit to Quarantine 24935 | -3/Research | Entered Quarantine 25048 | -3/Quarantine | Found Alien Artifact 25139 | -3/Quarantine | Found Alien Artifact 25368 | -3/Quarantine | Found Alien Energy Cannon 25368 | -3/Quarantine | Identified Core Cannon 25788 | -3/Quarantine | Found Alien Reactor 25834 | -3/Quarantine | Found Alien Artifact 25856 | -3/Quarantine | System corruption reached 10% 26134 | -3/Quarantine | Identified Phase Redirector 26134 | -3/Quarantine | Identified Subatomic Replicator 26134 | -3/Quarantine | Identified Core Reset Matrix 26134 | -3/Quarantine | Identified Transdimensional Reconstructor 26134 | -3/Quarantine | Identified Matter Drive 26229 | -3/Quarantine | Found Alien Impact Weapon 26540 | -3/Quarantine | Discovered new exit (range 13) 26582 | -3/Quarantine | Identified exit to Research 26584 | -3/Quarantine | Identified Core Stripper 26589 | -3/Quarantine | Entered Research 26589 | -2/Research | Evolved 2 slots: Utility x2 26923 | -2/Research | Destroyed 10 combat bots 27446 | -2/Research | Discovered new exit (range 3) 27449 | -2/Research | Identified exit to Testing 27525 | -2/Research | Entered Testing 27571 | -2/Testing | Found Prototype Energy Gun 27572 | -2/Testing | Identified Tachyon Dispersion Ray 27618 | -2/Testing | Found Prototype Device 27623 | -2/Testing | Identified Exp. Hardlight Generator 27995 | -2/Testing | Spotted Striker 28172 | -2/Testing | Spotted Striker 28174 | -2/Testing | Spotted Alpha 7 28176 | -2/Testing | Destroyed Striker 28227 | -2/Testing | Destroyed Alpha 7 28251 | -2/Testing | Destroyed Striker 28275 | -2/Testing | Stole the SGEMP Prototype 28448 | -2/Testing | Found Prototype Protection 28448 | -2/Testing | Identified SHELL Armor 28737 | -2/Testing | Found Prototype Leg 28737 | -2/Testing | Identified Myomer Exoskeleton 28935 | -2/Testing | Found Prototype Ballistic Cannon 29127 | -2/Testing | Found Prototype Energy Cannon 29231 | -2/Testing | Discovered new exit (range 3) 29275 | -2/Testing | First assault squad dispatched 29298 | -2/Testing | Incoming assault squad redirected 29328 | -2/Testing | Incoming assault squad redirected 29331 | -2/Testing | Core integrity fell below 50% 29346 | -2/Testing | Lost 3 parts (1n1u1w) 29378 | -2/Testing | Destroyed 7 combat bots 29411 | -2/Testing | Spotted Fortress 29535 | -2/Testing | Discovered new exit (range 5) 29540 | -2/Testing | Identified exit to Section 7 29598 | -2/Testing | Entered Section 7 29763 | -2/Section 7 | Identified Cld. Nova Cannon 29796 | -2/Section 7 | Found Alien Artifact 29848 | -2/Section 7 | First assault squad dispatched 29871 | -2/Section 7 | Incoming assault squad redirected 30123 | -2/Section 7 | Identified Microwarp Drive 30191 | -2/Section 7 | Spotted Alpha 7 30306 | -2/Section 7 | Spotted S7 Guard 30312 | -2/Section 7 | Found Alien Artifact 30390 | -2/Section 7 | Spotted B-99 Colossus 30394 | -2/Section 7 | Spotted Executioner 30396 | -2/Section 7 | Spotted Executioner 30442 | -2/Section 7 | Core integrity fell below 20% 30442 | -2/Section 7 | Destroyed Executioner 30458 | -2/Section 7 | Destroyed Executioner 30489 | -2/Section 7 | Incoming assault squad redirected 30515 | -2/Section 7 | Found Alien Artifact 30515 | -2/Section 7 | Identified LRC Boosters 30515 | -2/Section 7 | Installed LRC Boosters, increased mass support (+10) 30518 | -2/Section 7 | Found Alien Artifact 30518 | -2/Section 7 | Identified LRC Matter Compressor 30518 | -2/Section 7 | Installed LRC Matter Compressor, increased matter storage capacity (+125) 30520 | -2/Section 7 | Warped through subspace 30654 | -2/Section 7 | Spotted Alpha 7 30655 | -2/Section 7 | System corruption reached 10% 30668 | -2/Section 7 | Core destroyed Last Messages --------------- 30659_ Penetrated by Slug. 30659_ Slug penetrates Thrusters. 30659_ R-10 Processor destroyed. 30659_ K-01 Serf collects debris. 30660_ Slug penetrates Machine. 30660_ Penetrated by Slug. 30660_ Slug penetrates Thrusters. 30662_ P-80 Master resets L-61 Swordsman, system corruption cleaned. 30662_ Penetrated by Slug. 30663_ Slug penetrates Machine. 30663_ K-01 Serf collects debris. 30665_ Penetrated by Slug. 30665_ Myomer Exoskeleton destroyed. 30665_ Penetrated by Slug. 30665_ Slug penetrates Machine. 30666_ Penetrated by Slug. 30666_ Microwarped (distance 3). 30667_ K-01 Serf collects debris. 30667_ Microwarped (distance 10). 30668_ Microwarped (distance 8). Map ----- +----------------------------------------------------+ | ???????# " #"########??????????" """""" | | ??????????# ["##?????????????????" | | ??????????# "#??????????????????" | | ??????????# ##??????????????????" | | ??????????# #???????????????????" | | ??????????# #???????????????????" | | ??????????##"####???????????????????" " | | ???????????# #?????????????????????#" """" | | ???????????# #?????????????????????# "??"? | | ???????????# #?????????????????????#" """" | | ???????????# #?????????????????????#"" | | ??????????##"#######???????????????#"" " | | ??????????#! """" #???????????????#""" """" | | ??????????# ""S"" #?????????????###"""! "????" | | ??######### "" "" #????####+##### # 7%== """""" | | ?? # #????# / c=! | | " " # ! #????# / = | | " """ # """ #????# / | | ? """" # """ #????# / | | ???""" # """ [ #????# ##### # | | ????? # #????# #???###""" | | #######+######+########## #?????#""" | | #?????#""" | | R #?????#"" | | #??????" | | %[ w c @ #??????? """""""" | | +########## ###############??????? """""""" | | ????????# #??????????????????????######?????? | | !????????# #?????????????????????????????????? | | !!???????# +?????????????????????????????????? | | ! ???????# #?????????????????????????????????? | | ??????# #????c????????????????????????????? | | ??????# #?????????????????????????????????? | | ?????# #?????????????????????????????????? | | ?????# #?????????????????????????????????? | | ######????# #?????????????????????????????????? | | ??????????# #?????????????????????????????????# | | ??????????? ??????????????????????????????????# | | ?????????????????????????????????????????????????# | | ?????????????????????????????????????????????????? | | ?????????????????????????????????????????????????? | | ?????????????????????????????????????????????????? | | ?????????????????????????????????????????????????? | | ?????????????????????????????????????????????????? | | ?????????????????????????????????????????????????? | | ?????????????????????????????????????????????????? | | ?????????????????????????????????????????????????? | | ?????????????????????????????????????????????????? | | ?????????????????????????????????????????????????? | | ?????????????????????????????????????????????????? | +----------------------------------------------------+ Best States ------------- Heat Dissipation 129 Energy Generation 77 Energy Capacity 1050 Matter Stores 450 Matter Capacity 450 Sight Range 16 Robot Scan Range 16 Terrain Scan Density 210 Jamming Range 14 Power Amplification 60 Armor Coverage 1200 Resistance: KI 30 Resistance: TH 15 Resistance: EM 75 Propulsion Shielding 66 Evasion (%) 55 Targeting Accuracy 14 Launcher Accuracy 40 Recoil Reduction 3 Particle Charging 37 Offensive Hacking 34 Defensive Hacking 11 Relay Coupler Types 1 Relay Coupler Value 38 Item Schematics ----------------- Huge Storage Unit | -10/Materials | Hacked Combat Drone Bay | -7/Data Miner | Free Lgt. Regenerative Plating | -7/Data Miner | Free Biomechanical Wings | -7/Data Miner | Free Gravity Neutralizer | -7/Data Miner | Free Field Propulsion Drive | -7/Data Miner | Free Gui. EMP Blaster | -7/Data Miner | Free Imp. Coolant Injector | -7/Data Miner | Free Hvy. Phase Cannon | -7/Data Miner | Free Imp. Particle Charger | -7/Data Miner | Free Adv. Transmission Jammer | -7/Data Miner | Free Assault Drone Bay | -5/Zhirov | Free Exp. Heat Sink | -5/Zhirov | Free Exp. Optical Array | -5/Zhirov | Free Imp. Arc Thrower | -5/Zhirov | Free Robot Schematics ------------------ H-55 Commando | -7/Data Miner | Free S-27 Virus | -7/Data Miner | Free O-24 Administrator | -7/Data Miner | Free R-10 Processor | -7/Data Miner | Free B-60 Warrior | -7/Data Miner | Free Fabricated ------------ Nothing Alien Tech Used ----------------- Core Expander Integrated Reactor Core Cannon Core Stripper Microwarp Drive LRC Boosters LRC Matter Compressor Transdimensional Reconstructor Achievements -------------- None Challenges ------------ None Game ------ Seed TrackerGyrokineticTerminator Manual? 0 Play Time 02:46:03 Cumulative 352.3 hours Start 2023.05.20 @ 17:27:21 End 2023.05.20 @ 22:51:29 Sessions 3 Manual Loads 0 Difficulty Rogue Special Mode None Game No. 503 Rogue 476 Adventurer 4 Explorer 23 Win Type - Total 19 Types 14/0/2/2/1/0/0/0/0 Lore% 81 Gallery% 93 Achievement% 82 Wizard Run 0 Options --------- ASCII 0 Keyboard 1 Movement Numpad Keybinds 0 Fullscreen 1 Font 18/SmallcapsGlow Map View 76x50 Tactical HUD 1 Map Filters NONE Filters NONE Steam 1 RUN: 395ed488-d8c5-42b7-ba7a-03568e094b0b